Cogmind - Beta 16.1 *** ADVENTURER MODE // 2026.03.21 @ 14:04:42 Player: Kirbomon Result: Destroyed by D-53 Grenadier with Mini Grenade Launcher Performance ------------- Evolutions (0) 0 Regions Visited (2) 400 Robots Destroyed (4) 20 Value Destroyed (49) 49 Prototype IDs (0) 0 Alien Tech Used (0) 0 Bonus (-126) -126 TOTAL SCORE: 343 Bonus ------- Friendly Fire -126 Cogmind --------- Core Integrity 0/250 Matter 162/300 Energy 99/100 System Corruption 0% Temperature Cool (0) Movement Rolling (80) Location -10/Mines Parts ------- > --- POWER (1) -------- (None) > --- PROPULSION (2) --- Wheel > --- UTILITY (2) ------ Signal Interpreter > --- WEAPON (2) ------- (None) > --- INVENTORY (5) ---- Wheel Flight Unit High-capacity Battery (250) Medium Laser Mining Laser Peak State ------------ > --- POWER ------------ Light Ion Engine > --- PROPULSION ------- Flight Unit Flight Unit > --- UTILITY ---------- Heat Sink Signal Interpreter > --- WEAPON ----------- EM Pulse Gun Rocket Launcher > --- INVENTORY -------- Wheel Wheel High-capacity Battery Assault Rifle [Rating: 8] Favorites ----------- Power Light Ion Engine Engine Light Ion Engine Propulsion Wheel Wheel Wheel Flight Unit Flight Unit Utility Heat Sink Device Heat Sink Storage Small Storage Unit Processor Signal Interpreter Weapon EM Pulse Gun Energy Gun EM Pulse Gun Launcher Rocket Launcher Build | -11 -10 -10 ------- Run | Yrd Mat Min Slots Evolved . | . . . Power . | . . . Propulsion . | . . . Utility . | . . . Weapon . | . . . Parts Attached 15 | 5 7 3 Power 2 | 1 . 1 Engine 2 | 1 . 1 Core . | . . . Reactor . | . . . Propulsion 5 | 2 2 1 Treads . | . . . Leg . | . . . Wheel 3 | 2 . 1 Hover . | . . . Flight 2 | . 2 . Utility 4 | . 4 . Device 1 | . 1 . Storage 2 | . 2 . Processor 1 | . 1 . Hackware . | . . . Protection . | . . . Artifact . | . . . Weapon 4 | 2 1 1 Energy Gun 3 | 2 1 . Energy Cannon . | . . . Ballistic Gun . | . . . Ballistic Cannon . | . . . Launcher 1 | . . 1 Special Weapon . | . . . Impact Weapon . | . . . Slashing Weapon . | . . . Piercing Weapon . | . . . Special Melee Weapon . | . . . Unidentified Prototypes . | . . . Parts Lost 8 | . . 8 Power 2 | . . 2 Propulsion 3 | . . 3 Utility 1 | . . 1 Weapon 2 | . . 2 Highest Loss Streak 7 | . . 7 To Critical Strikes . | . . . Average Backups 3 | 2 3 4 Power . | . . . Propulsion 1 | 1 2 1 Utility . | . . 1 Weapon 1 | . 1 1 Tool/Special . | . . . Unused Backups 6 | . 2 4 Power . | . . . Propulsion 3 | . 2 1 Utility 1 | . . 1 Weapon 2 | . . 2 Tool/Special . | . . . Average Slot Usage (%) 83 | . 85 81 Engine 13 | . 14 13 Wheel 15 | . 15 15 Flight 10 | . 12 7 Device 10 | . 11 9 Processor 7 | . 1 14 Energy Gun 21 | . 28 13 Launcher 3 | . . 7 Peak Build Rating 8 | 5 7 8 Average Rating 5 | 3 6 6 On Entrance 4 | . 5 7 Avg Prop Armor Cover (%) 6 | . . 6 Naked Turns . | . . . Heaviest Build 10 | 7 8 10 Greatest Support 20 | 20 20 20 Greatest Overweight (x) 2 | 1 . 2 Average Overweight (x) . | . . . Largest Inventory Capacity 8 | 5 8 5 Average Capacity 5 | 5 5 5 Most Carried 5 | 5 5 5 Average Carried 3 | 2 3 4 Final Capacity 5 | 5 5 5 Final Carried 5 | 3 5 5 Class Distribution -------------------- 100% | Mutant Dominant Class ---------------- Mutant | -10/Materials Mutant | -10/Mines Resources | -11 -10 -10 ----------- Run | Yrd Mat Min Matter Collected 279 | 250 10 19 Remotely . | . . . Salvage Created 128 | 80 . 48 Parts 7 | 2 . 5 Haulers Intercepted . | . . . Recyclers Shooed . | . . . Parts Field Recycled . | . . . Retrieved Matter . | . . . Parts Self-Destructed . | . . . Prevented . | . . . Parts Restored . | . . . Kills | -11 -10 -10 ------- Run | Yrd Mat Min Combat Hostiles Destroyed 9 | 1 . 8 Guns 1 | 1 . . AOE 8 | . . 8 Classes Destroyed 4 | 2 . 2 Worker 1 | 1 . . Tunneler 2 | . . 2 Grunt 1 | 1 . . Assembled 8 | . . 8 Best Kill Streak 9 | 1 . 9 Combat Bots Only 8 | 1 . 8 Max Kills in Single Turn 3 | 1 . 3 Gunslinging . | . . . Exploded 3 | . . 3 Melee . | . . . Uniques/NPCs Destroyed . | . . . Combat | -11 -10 -10 -------- Run | Yrd Mat Min Hostile Shots Fired 21 | 1 . 20 Missed 3 | . . 3 Hits 18 | 1 . 17 Projectile 18 | 1 . 17 AOE 19 | . . 19 Damage Taken 629 | 9 . 620 Core 261 | . . 261 Absorbed by Shields . | . . . Ignored by Resistances 172 | 3 . 169 Core Remaining (%) 100 | 100 . . Volleys Fired 16 | 6 3 7 Largest 2 | 2 2 2 Hottest 90 | 90 90 73 Shots Fired 32 | 12 6 14 Gun 25 | 12 6 7 Cannon . | . . . Launcher 7 | . . 7 Special . | . . . Kinetic . | . . . Thermal 9 | 6 3 . Explosive 7 | . . 7 Electromagnetic 16 | 6 3 7 Robot Hit Streak 12 | 10 12 9 Robot Miss Streak 1 | . 1 1 Penetration Max . | . . . Secondary Targets . | . . . Shots Hit Robots 26 | 10 4 12 Core Hits 19 | 2 . 17 Critical Kills . | . . . Critical Parts Destroyed . | . . . Critical Strikes 1 | 1 . . Burn 1 | 1 . . Melee Attacks . | . . . Impact . | . . . Slashing . | . . . Piercing . | . . . Sneak Attacks . | . . . Combat Hostiles . | . . . Follow-up Attacks . | . . . Damage Inflicted 928 | 134 49 745 Guns 242 | 134 49 59 Cannons . | . . . Explosions 686 | . . 686 Melee . | . . . Ramming . | . . . Kinetic . | . . . Thermal 123 | 51 36 36 Explosive 650 | . . 650 Electromagnetic 155 | 83 13 59 Impact . | . . . Slashing . | . . . Piercing . | . . . Highest Corruption . | . . . Average Corruption . | . . . Corruption Purged . | . . . Corruption Blocked . | . . . Overload Shots . | . . . Overflow Damage 11 | . . 11 Projectiles . | . . . Explosions 11 | . . 11 Melee . | . . . Knockbacks . | . . . Impact . | . . . Kinetic . | . . . Secondary . | . . . Self-Inflicted Damage 21 | . . 21 Shots 1 | . . 1 Rammed . | . . . Targets Rammed . | . . . Kicked . | . . . Crushed . | . . . Highest Temperature 90 | 90 6 . Average Temperature 30 | 33 4 . Received Heat Transfer 6 | 6 . . Siege Activations . | . . . Martial Activations . | . . . Shielding Activations . | . . . Robots Disrupted . | . . . Combat Hostiles . | . . . Robots Corrupted . | . . . Combat Hostiles . | . . . Parts Fried . | . . . Impact Corruptions . | . . . Robots Melted . | . . . Combat Hostiles . | . . . Parts Melted . | . . . Heat Transferred 383 | 222 111 50 Parts Sabotaged . | . . . Parts Stolen . | . . . Parts Stripped . | . . . Power Chain Reactions 1 | . . 1 Alert | -11 -10 -10 ------- Run | Yrd Mat Min Maximum Alert Level . | . . . Low Security (%) 100 | 100 100 100 Level 1 . | . . . Level 2 . | . . . Level 3 . | . . . Level 4 . | . . . Level 5 . | . . . High Security . | . . . Max Security . | . . . Peak Influence 45 | 10 45 25 Initial 11 | . 5 11 Average 3 | 1 3 5 Influence Increases 122 | 25 51 46 Destroy 0b10 Robot/C 20 | 20 . . Destroy 0b10 Robot/NC 15 | 5 . 10 Successful Hack 6 | . 6 . Destroy Structure 36 | . . 36 Lose Combat Pursuer 45 | . 45 . Influence Decreases 122 | 15 26 81 Entered New Map 29 | . 5 24 Time Decay 74 | 15 21 38 Lost Part 19 | . . 19 Squads Dispatched . | . . . Investigation . | . . . Extermination . | . . . Reinforcement . | . . . Assault . | . . . Garrison . | . . . Intercept . | . . . Searches Triggered . | . . . Construction Impeded . | . . . Haulers Reinforced . | . . . Active Scanning Responses . | . . . Cargo Convoy Interrupts . | . . . Stealth | -11 -10 -10 --------- Run | Yrd Mat Min Distress Signals 1 | . 1 . Communications Jammed . | . . . Distress Signals . | . . . Times Spotted 14 | 1 2 11 Peak Tracking Total 7 | 1 6 7 Tactical Retreats 3 | . 1 2 Traps | -11 -10 -10 ------- Run | Yrd Mat Min Traps Triggered . | . . . Indirectly . | . . . Trap Hack Attempts . | . . . Triggered . | . . . Disarmed . | . . . Reprogrammed . | . . . Reused . | . . . Traps Extracted . | . . . Installed . | . . . Triggered . | . . . Machines | -11 -10 -10 ---------- Run | Yrd Mat Min Machines Disabled . | . . . Max in Single Turn . | . . . Machines Repaired . | . . . Machines Dismantled . | . . . Machines Sabotaged . | . . . Overloaded Fab Kills . | . . . Hacking | -11 -10 -10 --------- Run | Yrd Mat Min Machines Accessed 2 | . 2 . Terminals 1 | . 1 . Fabricators . | . . . Repair Stations . | . . . Recycling Units 1 | . 1 . Scanalyzers . | . . . Garrison Access . | . . . Total Hacks 4 | . 4 . Successful 4 | . 4 . Failed . | . . . Catastrophic . | . . . Database Lockouts . | . . . Manual . | . . . Terminals 2 | . 2 . Fabricators . | . . . Repair Stations . | . . . Recycling Units 2 | . 2 . Scanalyzers . | . . . Garrison Access . | . . . Terminal Hacks 2 | . 2 . Locate Traps 1 | . 1 . Surveillance Status 1 | . 1 . Fabricator Hacks . | . . . Repair Station Hacks . | . . . Recycling Unit Hacks 2 | . 2 . Report Inventory 2 | . 2 . Scanalyzer . | . . . Garrison Access Hacks . | . . . Unauthorized Hacks . | . . . Terminals . | . . . Fabricators . | . . . Repair Stations . | . . . Recycling Units . | . . . Scanalyzers . | . . . Garrison Access . | . . . Data Cores Recovered . | . . . Used . | . . . Hacking Detections 1 | . 1 . Full Trace Events . | . . . Feedback Events . | . . . Feedback Blocked . | . . . Robot Schematics Acquired . | . . . Robots Built . | . . . Authchips . | . . . Time . | . . . Total Robot Build Rating . | . . . Part Schematics Acquired . | . . . Parts Built . | . . . Authchips . | . . . Time . | . . . Total Part Build Rating . | . . . Part Studies Acquired . | . . . Parts Repaired . | . . . Time . | . . . Parts Recycled . | . . . Recycled Matter . | . . . Retrieved Matter . | . . . Retrieved Components . | . . . Parts Scanalyzed . | . . . Part Schematics Acquired . | . . . Parts Damaged . | . . . Bothacking | -11 -10 -10 ------------ Run | Yrd Mat Min Used RIF Installer . | . . . Robots Hacked . | . . . Non-combat . | . . . Combat . | . . . Robot Hacks Applied . | . . . Relay Couplers Released . | . . . Fabnet Peak Effective % . | . . . Robots Rewired . | . . . Allies Hacked . | . . . Hacks Repelled . | . . . Allies | -11 -10 -10 -------- Run | Yrd Mat Min Total Allies . | . . . Largest Group . | . . . Highest-Rated Group . | . . . Highest-Rated Ally . | . . . Total Orders . | . . . Ally Attacks . | . . . Total Damage . | . . . Kills . | . . . Allies Corrupted . | . . . Allies Melted . | . . . Intel | -11 -10 -10 ------- Run | Yrd Mat Min Active Infowar (turns) . | . . . Robot Analysis Total . | . . . Derelict Logs Recovered 2 | . . 2 Drone Launches . | . . . Drone Recoveries . | . . . Exploration | -11 -10 -10 ------------- Run | Yrd Mat Min Turns Passed 488 | 104 208 176 Spaces Moved 604 | 112 278 214 Core 63 | 54 . 9 Treads . | . . . Legs . | . . . Wheels 268 | 58 94 116 Hover . | . . . Flight 273 | . 184 89 Fastest Speed 37 | 50 37 37 Average Speed 58 | 66 51 63 Slowest Speed 150 | 100 80 150 Overloaded Moves . | . . . Propulsion Burnouts . | . . . Robots Hopped . | . . . Potential Cave-ins 4 | . . 4 Cave-ins Triggered . | . . . Exploration Rate (%) 26 | 5 36 38 Regions Visited 2 Branch Regions 1 Pre-discovered Areas . | . . . Known Exits Taken 1 | . 1 . Unknown Exits Taken 1 | 1 . . Scrap Searched . | . . . Spaces Dug . | . . . Terrain Destroyed 68 | . . 68 Melee . | . . . Projectile . | . . . AOE 68 | . . 68 Terrain Rammed . | . . . Walls Destroyed . | . . . Machines Disabled . | . . . Actions | -11 -10 -10 --------- Run | Yrd Mat Min Total 709 | 128 339 242 Wait 37 | . 34 3 Move 602 | 111 277 214 Hop . | . . . Pick Up 23 | 6 10 7 Fast Attach 4 | 2 1 1 Attach 13 | 3 5 5 Detach . | . . . Swap 1 | . 1 . Drop 13 | . 8 5 Fire 16 | 6 3 7 Melee . | . . . Ram . | . . . Kick . | . . . Crush . | . . . Escape Stasis . | . . . Rewire . | . . . Trap . | . . . Miscellaneous . | . . . Route ------- -11/Scrapyard -10/Materials -10/Mines History --------- Turn | Location | Event 2 | -11/Scrapyard | Met Revision 17 94 | -11/Scrapyard | Discovered new exit (range 8) 105 | -11/Scrapyard | Entered Materials 234 | -10/Materials | Discovered new exit (range 15) 305 | -10/Materials | Build established: Mutant 313 | -10/Materials | Identified exit to Mines 313 | -10/Materials | Entered Mines 335 | -10/Mines | Received a Rocket Launcher from a helpful Derelict 339 | -10/Mines | Learned Materials security intel 381 | -10/Mines | Assembled infested the area 386 | -10/Mines | Assisted by a Guerilla fighting off Assembled 390 | -10/Mines | Learned Materials emergency access door positions 427 | -10/Mines | Destroyed 8 combat bots 434 | -10/Mines | Core integrity fell below 50% 460 | -10/Mines | Core integrity fell below 20% 469 | -10/Mines | Lost 7 parts (1p3n1u2w) 489 | -10/Mines | Destroyed by D-53 Grenadier with Mini Grenade Launcher Last Messages --------------- Flight Unit destroyed. The unstable cave ceiling collapses. K-01 Serf collects debris. The unstable cave ceiling collapses. Rocket Launcher destroyed. EM Pulse Gun destroyed. Open spaces previously occupied by now-destroyed walls and earth have a slight glow to them. Consecutive moves through these unstable areas may cause a cave-in, but only if doing so for extended periods. Tunneling a short distance between rooms is safe unless the area was destabilized by an explosion. K-01 Serf destroyed. Acquired Wheel. The unstable cave ceiling collapses. Wheel destroyed. Lgt. Ion Engine destroyed. The unstable cave ceiling collapses. Acquired Wheel. Acquired Lgt. Ion Engine. Lgt. Ion Engine destroyed. Map ----- +----------------------------------------------------+ | | | | | | | | | | | | | | | | | | | | | | | ?????????????????????????????????????????????????? | | ????????????????????????????#####????????????????? | | ???????????????????????###### ##???????????????? | | ???????????????????????# ###?????????????? | | ???????????????????????# d### ####??????????? | | ??????????????????????##d ###### ##?????????? | | ??????????????????????# ???## ##????????? | | ??????????????????????# ##???## ##???????? | | ??????????????????????# ????## ##??????# | | ??????????????????????# #???## ##????## | | ??????????????????????# #??## ###### | | ???????????????????????# #???# ## | | ???????????????????????# #???# | | ???????????????????????# #???## | | ???????????????????????# @#????# ## | | ???????????????????????# #????# #### | | ???????????????????????# #????## ##??# | | ??????????????????????? #?????###????## | | ?????????????????????? #?????????????## | | ????????????????????? #??????????????## | | ????????????????????? #???????????????# | | ???????????????????? ???????????????## ## | | ???????????????????# ????????????????##### | | ???????????????????# #????????????????????# | | ???????????????????## #?????????????????????# | | ????????????????????#####?????# ################ | | ??????????????????????????????# | | ??????????????????????????????# | | ??????????????????????????????# ################ | | ??????????????????????????????# ??????????????# # | | ?????????????????????????????? ???????????????# | | ????????????????????????????? ???????????????## = | | ????????????????????????????#????????????????# | | ?????????????????????????????????????????????## # | | ??????????????????????????????????????????????## | | ???????????????????????????????????????????????# ! | | ???????????????????????????????????????????????# | | ???????????????????????????????????????????????# | | ????????????????????????????????????????????#??# | +----------------------------------------------------+ Best States ------------- Heat Dissipation 35 Energy Generation 10 Energy Capacity 125 Matter Stores 300 Matter Capacity 300 Sight Range 16 Terrain Scan Density 10 Resistance: KI 20 Resistance: TH 20 Resistance: EX 20 Resistance: EM 20 Resistance: I 20 Resistance: S 20 Resistance: P 20 Evasion (%) 62 Offensive Hacking 10 Item Schematics ----------------- None Robot Schematics ------------------ None Fabricated ------------ Nothing Repaired ---------- Nothing Studied --------- None Alien Tech Used ----------------- None Achievements -------------- None Challenges ------------ None Game ------ Seed PersonalWeightInterface Manual? 0 Play Time 00:13:18 Cumulative 2.1 hours Start 2026.03.21 @ 13:52:02 End 2026.03.21 @ 14:04:42 Sessions 1 Manual Loads 0 Difficulty Adventurer Special Mode None Game No. 3 Rogue 0 Adventurer 3 Explorer 0 Win Type - Total 0 Types 0/0/0/0/0/0/0/0/0/0 Lore% 2 Gallery% 5 Achievement% 7 Wizard Run 0 Options --------- Layout 0 ASCII 0 Keyboard 0 Movement Mouse Keybinds 0 Fullscreen 1 Font 18/SmallcapsGlow Map View 38x25 Zoom Use 90% Tactical HUD 0 Map Filters NONE Filters NONE Steam 1 RUN: 5c1c3fef-eae2-4c67-beaf-b4a12dac8f08